Cogmind - Beta 14 @@@ ROGUE MODE // 2024.10.20 @ 15:39:33 Player: Syanka Result: Destroyed by X-67 Chaingunner with Minigun Performance ------------- Evolutions (5) 2500 Regions Visited (21) 4200 Robots Destroyed (312) 1560 Value Destroyed (9785) 9785 Prototype IDs (52) 1040 Alien Tech Used (0) 0 Bonus (2123) 2123 TOTAL SCORE: 21208 Bonus ------- High Alert Combat Kills 1324 Follower Combat Kills 1177 Entered Garrisons 400 Aligned with FarCom 300 Met Data Miner 300 Acquired ECA 300 Friendly Fire -1678 Cogmind --------- Core Integrity 0/1000 Matter 70/300 Energy 65/100 System Corruption 13% Temperature Cool (16) Movement Core (200) Ox3 Location -5/Factory Parts ------- > --- POWER (1) -------- (None) > --- PROPULSION (4) --- (None) > --- UTILITY (10) ----- Medium Storage Unit Advanced Melee Analysis Suite Core Analyzer Advanced Hacking Suite Advanced System Shield > --- WEAPON (2) ------- (None) > --- INVENTORY (10) --- Advanced Cooling System Advanced Shield Generator Heavy Phase Cannon Heavy Phase Cannon Firepult Scatter Rocket Array Improved Plasma Cutter Peak State ------------ > --- POWER ------------ Micro Fission Core > --- PROPULSION ------- Field Propulsion Drive Field Propulsion Drive Impulse Thruster Array > --- UTILITY ---------- Advanced Cooling System Medium Storage Unit Encrypted Comm Array Advanced Melee Analysis Suite Core Analyzer Reaction Control System Improved Hacking Suite Advanced Hacking Suite Advanced Hacking Suite Advanced System Shield > --- WEAPON ----------- Heavy Phase Cannon Power Sword > --- INVENTORY -------- Nuclear Pulse Array Structural Scanner Advanced Shield Generator Heavy Phase Cannon Heavy Phase Cannon Firepult Scatter Rocket Array Improved Plasma Cutter [Rating: 98] Favorites ----------- Power Heavy Ion Engine Engine Heavy Ion Engine Power Core Enhanced Nuclear Core Reactor Antimatter Reactor Propulsion Light Treads Treads Light Treads Leg Aluminum Leg Wheel Wheel Hover Unit Antigrav System Flight Unit Improved Cesium-ion Thruster Utility Huge Storage Unit Device Improved Heat Sink Storage Huge Storage Unit Processor Armor Integrity Analyzer Hackware Improved Hacking Suite Protection Improved Medium Armor Plating Weapon Heavy Plasma Cannon Energy Gun Variable Charge Gun Energy Cannon Heavy Plasma Cannon Ballistic Gun Heavy Battle Rifle Ballistic Cannon Mass Driver Launcher Rocket Launcher Special Weapon Mining Laser Impact Weapon Hammer Slashing Weapon Axe Piercing Weapon Lance Special Melee Weapon Datajack Build | -11 -10 -10 -10 -9 -8 -8 -8 -8 -8 -7 -7 -7 -7 -6 -6 -6 -6 -6 -6 -5 -5 ------- Run | Yrd Mat Min Exi Min Mat Gar Mat Gar Mat Fac Was Fac Low Fac Was Fac Low Low Dat Pro Fac Slots Evolved 10 | . . . . . 4 . . . . 2 . . . 2 . . . . . . 2 Power . | . . . . . . . . . . . . . . . . . . . . . . Propulsion 2 | . . . . . 2 . . . . . . . . . . . . . . . . Utility 8 | . . . . . 2 . . . . 2 . . . 2 . . . . . . 2 Weapon . | . . . . . . . . . . . . . . . . . . . . . . Parts Attached 472 | 10 15 11 . 11 48 11 15 13 42 50 25 39 11 18 15 26 3 1 2 17 89 Power 30 | 1 1 1 . 1 5 . . . . 2 2 5 1 1 1 . . . . 1 8 Engine 20 | 1 1 1 . 1 4 . . . . 1 . 4 1 1 . . . . . 1 4 Core 7 | . . . . . 1 . . . . 1 . 1 . . . . . . . . 4 Reactor 3 | . . . . . . . . . . . 2 . . . 1 . . . . . . Propulsion 94 | 4 1 . . . 14 8 2 6 6 3 4 12 . 7 3 3 . . . 2 19 Treads 44 | 2 1 . . . 8 4 2 5 6 . 4 5 . . 2 3 . . . 1 1 Leg 7 | . . . . . 3 1 . 1 . . . . . . . . . . . 1 1 Wheel 12 | 2 . . . . 3 3 . . . 3 . . . . . . . . . . 1 Hover 5 | . . . . . . . . . . . . . . . . . . . . . 5 Flight 26 | . . . . . . . . . . . . 7 . 7 1 . . . . . 11 Utility 156 | 2 2 3 . 1 7 1 5 2 11 20 15 13 1 7 3 17 . 1 . 5 40 Device 96 | 1 . 3 . 1 6 . 2 . 8 16 10 5 1 2 2 16 . . . 2 21 Storage 7 | 1 2 . . . . . 1 . 1 . . 1 . . . . . . . . 1 Processor 14 | . . . . . . . 1 . . . 3 4 . . . 1 . . . . 5 Hackware 18 | . . . . . . . . . . 1 1 2 . 5 . . . . . . 9 Protection 21 | . . . . . 1 1 1 2 2 3 1 1 . . 1 . . 1 . 3 4 Artifact . | . . . . . . . . . . . . . . . . . . . . . . Weapon 192 | 3 11 7 . 9 22 2 8 5 25 25 4 9 9 3 8 6 3 . 2 9 22 Energy Gun 39 | 1 1 1 . 2 12 . 6 . 1 6 3 1 . . . 3 . . . . 2 Energy Cannon 48 | . . . . . 2 1 2 . 12 8 . 2 2 . 6 2 2 . 2 4 3 Ballistic Gun 17 | 2 6 3 . 2 3 . . . . . . . . . . 1 . . . . . Ballistic Cannon 21 | . . . . . . . . 3 7 6 . . . . . . . . . 1 4 Launcher 26 | . . 2 . 1 2 . . 2 5 2 . . 3 . 1 . . . . 4 4 Special Weapon 13 | . 4 1 . 4 3 . . . . . . . . . . . 1 . . . . Impact Weapon 5 | . . . . . . 1 . . . 2 . 1 . . . . . . . . 1 Slashing Weapon 16 | . . . . . . . . . . . 1 5 4 3 1 . . . . . 2 Piercing Weapon 6 | . . . . . . . . . . . . . . . . . . . . . 6 Special Melee Weapon 1 | . . . . . . . . . . 1 . . . . . . . . . . . Unidentified Prototypes 18 | . . . . . 5 . 2 . . 3 . 3 . . 1 2 . . . . 2 Corrupted Parts 2 | . . . . . . . . . . . . . . . 1 . . . . 1 . System Corruption 14 | . . . . . . . . . . . . . . . 8 . . . . 6 . Parts Lost 48 | . . . . . 4 . 1 2 . 8 . 1 2 1 . 2 . 1 . 9 17 Power 7 | . . . . . 1 . . . . 1 . 1 1 . . . . . . 1 2 Propulsion 16 | . . . . . 3 . . 1 . 2 . . . . . 1 . . . 3 6 Utility 22 | . . . . . . . 1 1 . 4 . . 1 1 . 1 . 1 . 5 7 Weapon 3 | . . . . . . . . . . 1 . . . . . . . . . . 2 Highest Loss Streak 8 | . . . . . 1 . 1 1 . 5 . 1 2 1 . 1 . 1 . 5 8 To Critical Strikes . | . . . . . . . . . . . . . . . . . . . . . . Average Slot Usage (%) 89 | . 100 100 100 100 93 99 99 99 96 80 88 89 93 89 66 68 86 83 67 69 73 Engine 6 | . 14 14 14 14 7 9 9 9 9 2 . 2 7 6 3 . . . . . 1 Reactor 1 | . . . . . . . . . . . 5 3 . . 2 6 6 6 6 5 . Treads 19 | . 28 28 28 28 24 14 34 30 35 7 15 6 . . 7 12 13 13 13 9 . Leg 1 | . . . . . 4 . . 5 . . . . . . . . . . . . 1 Wheel 1 | . . . . . 1 21 1 . . 8 4 . . . . . . . . . . Flight 2 | . . . . . . . . . . . . 16 30 26 11 . . . . . 8 Device 17 | . 14 14 14 14 24 18 25 9 8 22 22 10 15 9 4 12 33 33 33 26 20 Storage 8 | . 14 14 14 14 9 9 9 9 9 7 7 6 7 6 6 6 6 6 6 5 1 Processor 3 | . . . . . . . . 9 6 . 15 12 7 4 . 1 6 1 . . 7 Hackware 3 | . . . . . . . . . . . . 7 15 26 24 10 6 3 . . 10 Protection 4 | . . . . . 2 9 1 8 9 9 . 4 . . 3 4 . 4 6 8 3 Energy Gun 5 | . 2 13 14 10 8 3 9 9 2 3 12 3 . . . . . . . . 1 Energy Cannon 3 | . . . . . 1 5 8 . 7 6 2 2 . . . 5 13 13 1 10 . Ballistic Gun 4 | . 20 13 14 12 5 . . . . . . . . . . 4 . . . . . Ballistic Cannon 1 | . . . . . . . . 8 8 2 . . . . . . . . . . . Peak Build Rating 98 | 7 10 16 16 16 31 45 50 50 56 65 75 68 51 60 87 89 77 81 76 85 98 Average Rating 44 | 5 7 13 15 15 26 35 44 49 43 50 61 56 44 52 65 82 76 78 66 65 69 On Entrance 42 | . 7 10 15 16 16 28 40 50 48 42 42 68 51 43 53 77 77 77 76 76 16 Naked Turns 4 | . . . . . . . . . . . . . . . . . . . . 4 . Heaviest Build 126 | 15 91 93 91 92 99 109 112 111 126 126 116 124 25 22 74 89 51 59 59 74 37 Greatest Support 140 | 40 40 40 40 40 80 80 87 87 89 89 140 140 23 25 140 140 140 140 140 140 39 Greatest Overweight (x) 37 | 2 2 2 2 2 9 10 10 1 1 4 37 2 1 1 . 1 . . . 1 4 Average Overweight (x) . | . . 2 2 2 1 3 1 1 1 2 2 . . . . . . . . . . Largest Inventory Capacity 25 | 8 25 25 25 25 25 25 25 25 25 25 25 25 10 10 10 10 10 10 10 10 10 Average Capacity 19 | 7 13 25 25 25 25 25 25 25 25 25 25 16 10 10 10 10 10 10 10 9 6 Most Carried 25 | 6 16 25 25 25 25 25 25 25 25 25 25 25 10 10 10 10 10 10 10 10 10 Average Carried 18 | 4 12 23 24 24 24 24 24 24 24 23 24 16 9 8 9 9 9 9 10 8 6 Final Capacity 25 | 8 25 25 25 25 25 25 25 25 25 25 25 25 10 10 10 10 10 10 10 5 10 Final Carried 25 | 6 16 25 25 25 25 25 25 25 25 25 25 25 9 10 10 10 10 10 10 5 8 Class Distribution -------------------- 43% | Scavenger-Mutant 40% | Mutant 5% | Hacker-Sprinter 3% | Hacker-Mutant Dominant Class ---------------- Mutant | -10/Materials Mutant | -10/Mines Mutant | -10/Exiles Mutant | -9/Mines Scavenger-Mutant | -8/Materials Scavenger-Mutant | -8/Garrison Mutant | -8/Materials Scavenger-Mutant | -8/Garrison Mutant | -8/Materials Mutant | -7/Factory Scavenger-Mutant | -7/Waste Hacker-Sprinter | -7/Factory Hacker-Sprinter | -7/Lower Caves Hacker-Sprinter | -6/Factory Hacker-Mutant | -6/Waste Scavenger-Mutant | -6/Factory Scavenger-Mutant | -6/Lower Caves Scavenger-Mutant | -6/Lower Caves Scavenger-Mutant | -6/Data Miner Scavenger-Mutant | -5/Proximity Caves Hacker-Mutant | -5/Factory Resources | -11 -10 -10 -10 -9 -8 -8 -8 -8 -8 -7 -7 -7 -7 -6 -6 -6 -6 -6 -6 -5 -5 ----------- Run | Yrd Mat Min Exi Min Mat Gar Mat Gar Mat Fac Was Fac Low Fac Was Fac Low Low Dat Pro Fac Matter Collected 7663 | 330 751 92 . 236 701 74 192 337 735 815 459 397 165 190 137 675 69 168 . 264 876 Remotely 516 | . . . . . . . . . 124 392 . . . . . . . . . . . Salvage Created 13516 | 169 522 194 . 177 1453 26 258 214 1631 1349 507 1312 39 236 1668 1464 67 384 . 660 1186 Parts 616 | 13 42 18 . 13 75 1 11 13 81 54 15 61 5 14 10 82 4 13 . 16 75 Haulers Intercepted 17 | . 2 . . . 2 . . . 5 . . 5 . 1 . 1 . . . . 1 Recyclers Shooed 23 | . 1 2 . . 1 . 1 . . 6 . . . . . 11 . . . . 1 Parts Field Recycled . | . . . . . . . . . . . . . . . . . . . . . . Retrieved Matter . | . . . . . . . . . . . . . . . . . . . . . . Parts Self-Destructed 64 | . . . . . . . . . . . . . 20 . . . 4 15 . 25 . Prevented 1 | . . . . . . . . . . . . . . . . . . . . 1 . Kills | -11 -10 -10 -10 -9 -8 -8 -8 -8 -8 -7 -7 -7 -7 -6 -6 -6 -6 -6 -6 -5 -5 ------- Run | Yrd Mat Min Exi Min Mat Gar Mat Gar Mat Fac Was Fac Low Fac Was Fac Low Low Dat Pro Fac Combat Hostiles Destroyed 211 | . 11 5 . 6 27 1 4 11 31 26 1 14 3 1 6 18 3 4 . 27 12 Melee 9 | . . . . . . 1 . . 1 . . 3 . 1 . . . . . . 3 Guns 55 | . 11 2 . 4 16 . 1 2 . 6 1 7 . . . 5 . . . . . Cannons 60 | . . . . . 3 . 2 3 10 9 . 2 . . . 9 3 4 . 14 1 AOE 67 | . . 3 . 2 7 . . 6 12 9 . 2 3 . 1 3 . . . 12 7 Classes Destroyed 24 | 2 7 . . 1 1 . 2 . 2 2 1 . . . 1 2 . . . 1 2 Worker 18 | . 4 1 . . . . . . 5 3 . 1 . . . 4 . . . . . Builder 21 | . 1 . . . 4 . 1 . 1 4 . 3 . . . 3 . . . . 4 Tunneler 9 | 4 . 1 . 1 . . . . 1 1 . . . . . 1 . . . . . Hauler 17 | . 2 . . . 2 . . . 5 . . 5 . 1 . 1 . . . . 1 Recycler 21 | 1 . 2 . 2 2 . . . 1 4 . 3 . . . 3 . . . . 3 Mechanic 2 | . . . . . . . . . . . . . . . . 1 . . . . 1 Operator 6 | . 1 . . . 2 . . . 1 . . . . 1 . 1 . . . . . Drone 1 | . . . . . . . . . . . . . . . . . . . . 1 . Watcher 18 | . 2 . . . 2 . 1 . 3 . . 3 . 2 . 1 . . . . 4 Swarmer 64 | . 6 3 . 3 7 1 . 6 5 3 . 4 3 . . 3 3 3 . 9 5 Cutter 2 | . . . . . . . . . . . . . . . . . . . . . 2 Grunt 66 | . 5 2 . 1 15 . 1 3 13 7 . 6 . . . 5 . . . 8 . Brawler 6 | . . . . . . . . . 5 1 . . . . . . . . . . . Duelist 1 | . . . . . . . . . . . 1 . . . . . . . . . . Protector 1 | . . . . . . . . . 1 . . . . . . . . . . . . Sentry 17 | . . . . . 5 . . . 6 2 . 3 . . . 1 . . . . . Demolisher 2 | . . . . . . . . . . 2 . . . . . . . . . . . Specialist 4 | . . . . . . . 2 . . . . . . . . 2 . . . . . Hunter 12 | . . . . . . . 1 2 1 3 . . . . . 4 . 1 . . . Programmer 10 | . . . . . . . . . . 2 . 1 . 1 . 2 . . . . 4 Heavy 1 | . . . . . . . . . . . . . . . . 1 . . . . . Compactor 6 | . . . . . . . . . . . . . . . 6 . . . . . . Assembled 17 | . . . . 2 . . . . . 6 . . . . . . . . . 9 . Thug 3 | . . . . . . . . . . . . . . . . . . 3 . . . Mutant 1 | . . . . . . . . . . . . . . . . . . . . . 1 Infiltrator 2 | . . . . . . . . . . . . . . . . . . . . . 2 Commander 1 | . . . . . . . . . . . . . . . . . . 1 . . . Best Kill Streak 11 | 2 5 4 . 3 10 1 2 3 5 10 1 5 3 2 3 11 3 3 . 10 6 Combat Bots Only 10 | . 4 3 . 2 8 1 2 3 5 8 1 5 3 1 3 7 3 3 . 10 4 Max Kills in Single Turn 8 | 1 2 2 . 3 3 1 1 3 3 3 1 2 2 1 1 8 1 1 . 3 4 Gunslinging . | . . . . . . . . . . . . . . . . . . . . . . Exploded 3 | . . 2 . 2 2 . . 3 2 3 . 2 2 . 1 3 . . . 3 3 Melee 1 | . . . . . . 1 . . 1 . . 1 . 1 . . . . . . 1 Uniques/NPCs Destroyed . | . . . . . . . . . . . . . . . . . . . . . . Combat | -11 -10 -10 -10 -9 -8 -8 -8 -8 -8 -7 -7 -7 -7 -6 -6 -6 -6 -6 -6 -5 -5 -------- Run | Yrd Mat Min Exi Min Mat Gar Mat Gar Mat Fac Was Fac Low Fac Was Fac Low Low Dat Pro Fac Hostile Shots Fired 1424 | . 48 13 . 17 145 . 45 58 55 285 4 181 7 32 . 155 18 22 . 145 194 Missed 413 | . 17 3 . 6 50 . 7 10 13 82 . 78 2 19 . 30 3 4 . 29 60 Damage Taken 15692 | . 326 149 . 164 1346 45 814 786 856 2870 154 1071 151 169 . 1662 224 256 . 1941 2708 Core 2458 | . 72 11 . 59 164 45 111 96 127 204 30 230 94 5 . 57 12 31 . 104 1006 Absorbed by Shields 590 | . . . . . . . . 14 . 102 . . . . . 416 . . . . 58 Reduced by Siege Mode 364 | . . . . . . . . . . . . 70 . . . 97 30 16 . 151 . Ignored by Resistances 325 | . . . . . . . . . . 132 . . . . . 50 . . . 143 . Regen/Repaired (Parts) 316 | . . . . . . . . . 316 . . . . . . . . . . . . Core Remaining (%) 47 | 100 . . . 43 . . . . 1 . . . 20 . . . . . . 75 . Volleys Fired 823 | 23 98 18 . 21 121 2 30 39 81 117 15 31 9 . 8 99 8 28 . 57 18 Largest 2 | 2 2 2 . 2 2 2 2 2 2 2 2 2 1 . 1 2 2 2 . 2 2 Hottest 300 | 40 120 100 . 100 161 161 173 300 250 294 101 250 69 . 250 175 180 180 . 260 250 Shots Fired 1382 | 36 167 28 . 35 218 3 56 64 113 188 30 60 9 . 8 170 17 57 . 102 21 Gun 669 | 36 139 22 . 29 158 1 31 31 6 79 28 29 . . . 73 . . . . 7 Cannon 617 | . . . . . 41 1 25 29 95 105 2 31 4 . 8 97 17 57 . 94 11 Launcher 45 | . . 3 . 1 5 . . 4 12 4 . . 5 . . . . . . 8 3 Special 51 | . 28 3 . 5 14 1 . . . . . . . . . . . . . . . Kinetic 462 | 26 139 12 . 15 63 . . 29 47 48 . . . . . 69 . . . 6 8 Thermal 855 | . 28 13 . 19 150 3 56 31 54 122 30 60 . . 8 101 17 57 . 96 10 Explosive 37 | . . 3 . 1 5 . . 4 12 4 . . 5 . . . . . . . 3 Electromagnetic 28 | 10 . . . . . . . . . 14 . . 4 . . . . . . . . Robot Hit Streak 19 | 6 6 5 . 6 17 . 11 19 14 16 13 17 1 . 6 10 5 9 . 9 7 Robot Miss Streak 7 | 4 7 3 . 6 7 . 4 1 2 7 2 3 2 . 2 4 5 2 . 5 3 Penetration Max 1 | . . . . . . . . . 1 1 . . . . . 1 . . . . . Secondary Targets 13 | . 3 . . 1 5 . . . . 4 . . . . . . . . . . . Max Gunslinging Chain 1 | . 1 . . 1 1 . . . . 1 . . . . . . . . . . . Shots Hit Robots 830 | 19 72 19 . 22 137 2 36 28 41 113 19 68 2 11 4 103 6 29 . 48 51 Core Hits 507 | 6 31 22 . 25 66 1 6 15 67 54 9 36 6 6 9 53 3 14 . 31 47 Critical Kills 4 | . . . . . . . . . . . . . . . . 2 . 2 . . . Critical Parts Destroyed 9 | . . . . 1 1 . . . . . . 1 . . . 2 . . . . 4 Critical Strikes 39 | 1 . . . 1 5 . . 2 . 4 1 8 . 1 . 4 . 2 . 1 9 Burn 12 | . . . . . 4 . . . . 3 1 4 . . . . . . . . . Meltdown 4 | . . . . . . . . . . . . . . . . 2 . 2 . . . Destroy 4 | . . . . 1 1 . . . . . . . . . . 2 . . . . . Blast 4 | . . . . . . . . 2 . 1 . . . . . . . . . 1 . Corrupt 1 | 1 . . . . . . . . . . . . . . . . . . . . . Smash 5 | . . . . . . . . . . . . 1 . . . . . . . . 4 Sever 7 | . . . . . . . . . . . . 3 . 1 . . . . . . 3 Impale 2 | . . . . . . . . . . . . . . . . . . . . . 2 Melee Attacks 207 | . . . . . . 12 . . . 6 . 54 4 35 . . . . . . 96 Impact 46 | . . . . . . 12 . . . 5 . 6 . . . . . . . . 23 Slashing 126 | . . . . . . . . . . . . 48 4 35 . . . . . . 39 Piercing 34 | . . . . . . . . . . . . . . . . . . . . . 34 Sneak Attacks 26 | . . . . . . 1 . . . 1 . 10 . 3 . . . . . . 11 Combat Hostiles 3 | . . . . . . 1 . . . . . 1 . . . . . . . . 1 Follow-up Attacks 6 | . . . . . . . . . . . . 4 . 1 . . . . . . 1 Damage Inflicted 31114 | 245 1024 544 . 495 2957 126 1101 1031 3278 4372 404 2710 167 527 817 4370 192 990 . 2404 3360 Guns 8009 | 245 932 295 . 330 1958 . 486 404 94 1108 404 540 . . . 1189 . . . . 24 Cannons 9564 | . . . . . 474 . 575 374 1127 1524 . 425 12 . 304 1800 192 990 . 1523 244 Explosions 8583 | . . 217 . 157 488 . . 253 2037 1695 . 124 155 . 513 1319 . . . 881 744 Melee 4526 | . . . . . . 126 . . . . . 1525 . 527 . . . . . . 2348 Ramming 360 | . 44 32 . 8 13 . 40 . 20 45 . 96 . . . 62 . . . . . Kinetic 4961 | 153 932 180 . 169 696 . . 374 546 513 . . . . . 1086 . . . 146 166 Thermal 17275 | . 48 115 . 161 1760 . 1061 404 1486 2739 404 1089 . . 817 3222 192 990 . 2258 529 Explosive 3713 | . . 217 . 157 488 . . 253 1226 900 . . 155 . . . . . . . 317 Electromagnetic 279 | 92 . . . . . . . . . 175 . . 12 . . . . . . . . Impact 1187 | . . . . . . 126 . . . . . 162 . . . . . . . . 899 Slashing 2814 | . . . . . . . . . . . . 1363 . 527 . . . . . . 924 Piercing 525 | . . . . . . . . . . . . . . . . . . . . . 525 Highest Corruption 30 | . . . . . . 1 1 1 1 3 3 1 1 . 24 24 24 24 24 30 13 Average Corruption 9 | . . . . . . 1 1 1 1 1 2 1 1 . 15 24 24 24 24 29 7 Corruption Purged 7 | . . . . . . . . . . . 3 . . . . . . . . . 4 Corruption Blocked . | . . . . . . . . . . . . . . . . . . . . . . Effects 375 | . . . . . . 3 8 12 16 10 17 6 1 . 9 103 26 59 5 46 54 Message Errors 87 | . . . . . . . 4 4 3 2 4 1 . . 3 25 2 13 5 8 13 Matter Fused 85 | . . . . . . 2 2 1 4 2 4 2 . . 2 17 10 16 . 11 12 Heat Flow Errors 49 | . . . . . . . . 2 3 . 1 1 1 . . 12 4 10 . 6 9 Energy Discharges 48 | . . . . . . 1 1 1 3 2 2 . . . 1 13 5 6 . 4 9 Parts Rejected 1 | . . . . . . . . . . . . . . . . . . . . 1 . Parts Fused 4 | . . . . . . . . . . . 1 . . . . 1 . . . . 2 Data Loss (minor) 43 | . . . . . . . . 2 3 2 2 1 . . 1 15 1 5 . 6 5 Data Loss (major) 19 | . . . . . . . 1 1 . 1 2 . . . 2 5 2 1 . 2 2 Misfires 12 | . . . . . . . . 1 . 1 . . . . . 1 1 4 . 4 . Alerts 8 | . . . . . . . . . . . 1 1 . . . 3 1 2 . . . Misdirections 6 | . . . . . . . . . . . . . . . . 3 . 1 . . 2 Weapon Failures 13 | . . . . . . . . . . . . . . . . 8 . 1 . 4 . Overload Shots 15 | . . . . . . . . 3 . 6 . 5 . . . . . . . . 1 Overflow Damage 1607 | . . . . . 29 29 6 13 103 172 . 224 15 113 . 244 . 3 . 64 592 Projectiles 147 | . . . . . 17 . 6 13 44 23 . . . . . 1 . 3 . 40 . Explosions 589 | . . . . . 12 . . . 59 148 . . 15 . . 243 . . . 24 88 Melee 871 | . . . . . . 29 . . . 1 . 224 . 113 . . . . . . 504 Knockbacks 20 | . . . . . . . . 2 1 6 . 2 . . . 1 . . . 1 7 Impact 4 | . . . . . . . . . . 1 . 2 . . . 1 . . . . . Kinetic 16 | . . . . . . . . 2 1 5 . . . . . . . . . 1 7 Secondary . | . . . . . . . . . . . . . . . . . . . . . . Self-Inflicted Damage 647 | . . 29 . . . . 68 28 236 142 . . 51 . . . . . . . 93 Shots 25 | . . 1 . . . . 1 1 13 2 . . 1 . . . . . . . 6 Rammed 36 | . 6 3 . 3 3 . 3 . 1 3 . 4 . . . 10 . . . . . Targets Rammed 42 | . 8 4 . 3 3 . 3 . 3 3 . 4 . . . 11 . . . . . Kicked . | . . . . . . . . . . . . . . . . . . . . . . Crushed 6 | . 2 1 . . . . . . 2 . . . . . . 1 . . . . . Highest Temperature 444 | . 80 96 . 144 150 2 252 327 444 198 233 442 233 3 350 353 . 12 . 200 434 Average Temperature 93 | . 25 43 . 51 47 1 51 162 77 94 129 108 105 3 155 122 . 12 . 129 134 Received Heat Transfer 3291 | . 117 54 . 12 657 . 189 279 243 449 . 258 12 12 . 107 . . . 620 282 Effects 14 | . . . . . . . 3 1 . . . . . . 1 5 . . . . 4 Energy Bleed 5 | . . . . . . . . 1 . . . . . . . 2 . . . . 2 Interference 8 | . . . . . . . 3 . . . . . . . 1 2 . . . . 2 Matter Decay 1 | . . . . . . . . . . . . . . . . 1 . . . . . Siege Activations 22 | . . . . . . . . . . . . 4 . . . 11 1 2 . 4 . Total Turns 338 | . . . . . . . . . . . . 64 . . . 154 12 16 . 92 . Longest Duration 43 | . . . . . . . . . . . . 31 . . . 27 12 12 . 43 . Robots Corrupted 4 | . . . . . . . . . . 1 . 2 . . . . . . . . 1 Combat Hostiles 1 | . . . . . . . . . . . . . . . . . . . . . 1 Parts Fried 10 | 1 . . . . . . . . . 1 . 4 . . . . . . . . 4 Impact Corruptions 18 | . . . . . . 1 . . . 1 . 6 . . . . . . . . 10 Robots Melted 23 | . . . . . 1 . 1 . 9 2 . . . . 5 2 . 2 . 1 . Combat Hostiles 19 | . . . . . 1 . 1 . 8 2 . . . . 5 1 . . . 1 . Parts Melted 95 | . . . . . 9 . 6 . 21 7 . 6 . . 19 9 2 4 . 9 3 Heat Transferred 34134 | . 100 140 . 210 4046 . 1664 581 6550 4006 814 2736 . . 3600 3372 261 1550 . 3350 1154 Parts Sabotaged 4 | . . . . . . . . . . . . . . . . . . . . . 4 Parts Stolen . | . . . . . . . . . . . . . . . . . . . . . . Parts Stripped . | . . . . . . . . . . . . . . . . . . . . . . Power Chain Reactions . | . . . . . . . . . . . . . . . . . . . . . . Alert | -11 -10 -10 -10 -9 -8 -8 -8 -8 -8 -7 -7 -7 -7 -6 -6 -6 -6 -6 -6 -5 -5 ------- Run | Yrd Mat Min Exi Min Mat Gar Mat Gar Mat Fac Was Fac Low Fac Was Fac Low Low Dat Pro Fac Peak Influence 1439 | 25 379 115 . 133 423 952 582 1159 1439 1038 318 573 . 514 132 782 . . . . 448 Initial 654 | . 16 93 . . 9 184 464 208 564 654 303 . . 361 132 92 . . . . 181 Average 345 | 12 180 38 . 10 232 538 470 737 699 854 211 279 . 411 132 164 . . . . 193 Maximum Alert Level 4 | . 1 . . . 2 3 2 4 4 3 1 2 . 2 . 3 . . . . 2 Low Security (%) 39 | 100 42 100 . 100 35 1 . . . . 52 39 . . 100 72 . . . . 54 Level 1 24 | . 57 . . . 64 19 29 11 6 . 47 17 . 32 . 17 . . . . 37 Level 2 21 | . . . . . . 54 70 44 62 7 . 42 . 67 . . . . . . 7 Level 3 11 | . . . . . . 23 . 30 6 92 . . . . . 10 . . . . . Level 4 3 | . . . . . . . . 13 23 . . . . . . . . . . . . Level 5 . | . . . . . . . . . . . . . . . . . . . . . . High Security . | . . . . . . . . . . . . . . . . . . . . . . Max Security . | . . . . . . . . . . . . . . . . . . . . . . Squads Dispatched 51 | . 2 . . . 2 . 4 . 6 8 . 9 . 2 . 7 . . . . 11 Investigation 8 | . . . . . . . . . . . . 4 . . . 1 . . . . 3 Extermination 10 | . . . . . . . . . . 2 . 2 . 1 . 2 . . . . 3 Reinforcement 26 | . 2 . . . 2 . 3 . 3 4 . 2 . 1 . 4 . . . . 5 Assault 4 | . . . . . . . . . 3 1 . . . . . . . . . . . Garrison 3 | . . . . . . . 1 . . 1 . 1 . . . . . . . . . Intercept . | . . . . . . . . . . . . . . . . . . . . . . Searches Triggered . | . . . . . . . . . . . . . . . . . . . . . . Construction Impeded 5 | . . . . . . . . . 1 1 . . . . . 1 . . . . 2 Haulers Reinforced 5 | . . . . . . . . . . 2 . 2 . . . . . . . . 1 Active Scanning Responses . | . . . . . . . . . . . . . . . . . . . . . . Cargo Convoy Interrupts 1 | . . . . . . . . . . . . . . . . . . . . . 1 Stealth | -11 -10 -10 -10 -9 -8 -8 -8 -8 -8 -7 -7 -7 -7 -6 -6 -6 -6 -6 -6 -5 -5 --------- Run | Yrd Mat Min Exi Min Mat Gar Mat Gar Mat Fac Was Fac Low Fac Was Fac Low Low Dat Pro Fac Distress Signals 21 | . 1 . . 1 4 . . . 8 2 . 1 . . . 1 . . . . 3 Communications Jammed . | . . . . . . . . . . . . . . . . . . . . . . Distress Signals . | . . . . . . . . . . . . . . . . . . . . . . Times Spotted 387 | . 29 5 . 7 50 . 16 16 49 30 1 27 8 12 4 31 3 5 . 29 65 Peak Tracking Total 13 | . 5 3 . 4 5 . 3 4 7 6 1 5 3 7 4 4 3 3 . 9 13 Tactical Retreats 29 | . 4 . . 1 1 . . 2 2 1 . 5 3 . . 1 . . . . 9 Traps | -11 -10 -10 -10 -9 -8 -8 -8 -8 -8 -7 -7 -7 -7 -6 -6 -6 -6 -6 -6 -5 -5 ------- Run | Yrd Mat Min Exi Min Mat Gar Mat Gar Mat Fac Was Fac Low Fac Was Fac Low Low Dat Pro Fac Traps Triggered 22 | . 1 . . . . 1 . 7 . 4 . . . 1 . 4 . . . . 4 Indirectly . | . . . . . . . . . . . . . . . . . . . . . . Trap Hack Attempts . | . . . . . . . . . . . . . . . . . . . . . . Triggered . | . . . . . . . . . . . . . . . . . . . . . . Disarmed . | . . . . . . . . . . . . . . . . . . . . . . Reprogrammed . | . . . . . . . . . . . . . . . . . . . . . . Reused 1 | . . . . . 1 . . . . . . . . . . . . . . . . Traps Extracted . | . . . . . . . . . . . . . . . . . . . . . . Installed 2 | . . . . . 2 . . . . . . . . . . . . . . . . Triggered 6 | . . . . . 1 . . . . . . . 1 . . . . . . 4 . Most Traps Carried 5 | . . 5 5 5 5 2 . . . . . . . . . . . . . . . Time Bombs Activated 1 | . . . . . . . . . . . . . . . . . . . . 1 . Exploded 1 | . . . . . . . . . . . . . . . . . . . . 1 . Machines | -11 -10 -10 -10 -9 -8 -8 -8 -8 -8 -7 -7 -7 -7 -6 -6 -6 -6 -6 -6 -5 -5 ---------- Run | Yrd Mat Min Exi Min Mat Gar Mat Gar Mat Fac Was Fac Low Fac Was Fac Low Low Dat Pro Fac Machines Disabled 64 | . . . . 1 3 2 2 4 10 10 . 2 . . . 20 . 2 . . 8 Max in Single Turn 17 | . . . . 1 1 1 2 1 2 6 . 2 . . . 17 . 1 . . 4 Garrison Access 6 | . . . . . . . . . 1 . . . . 1 . 1 . . . . 3 Garrison Relay 3 | . . . . . . 2 . 1 . . . . . . . . . . . . . Machines Repaired . | . . . . . . . . . . . . . . . . . . . . . . Machines Dismantled . | . . . . . . . . . . . . . . . . . . . . . . Machines Sabotaged . | . . . . . . . . . . . . . . . . . . . . . . Overloaded Fab Kills . | . . . . . . . . . . . . . . . . . . . . . . Hacking | -11 -10 -10 -10 -9 -8 -8 -8 -8 -8 -7 -7 -7 -7 -6 -6 -6 -6 -6 -6 -5 -5 --------- Run | Yrd Mat Min Exi Min Mat Gar Mat Gar Mat Fac Was Fac Low Fac Was Fac Low Low Dat Pro Fac Machines Accessed 91 | . 5 . 2 1 4 4 7 4 5 4 . 16 . 7 . 7 1 3 4 . 17 Terminals 53 | . 5 . . 1 2 4 6 4 3 2 . 8 . 3 . 4 . 1 . . 10 Fabricators 9 | . . . . . . . . . . . . 3 . 2 . 1 . . . . 3 Repair Stations 3 | . . . . . . . . . 1 1 . 1 . . . . . . . . . Recycling Units 2 | . . . . . . . . . . . . 1 . . . 1 . . . . . Scanalyzers 3 | . . . . . 1 . . . . . . 1 . . . . . . . . 1 Garrison Access 12 | . . . . . 1 . 1 . 1 1 . 2 . 2 . 1 . . . . 3 Total Hacks 232 | . 8 . 2 2 7 6 11 5 16 7 . 44 . 14 . 11 1 12 31 . 55 Successful 141 | . 2 . 2 . 4 2 6 1 8 1 . 24 . 10 . 6 1 12 31 . 31 Failed 91 | . 6 . . 2 3 4 5 4 8 6 . 20 . 4 . 5 . . . . 24 Catastrophic 14 | . 2 . . . . 1 . 2 2 . . 2 . . . 1 . . . . 4 Database Lockouts . | . . . . . . . . . . . . . . . . . . . . . . Manual 97 | . 8 . 1 2 4 . 10 . 8 2 . 20 . 3 . 5 . . . . 34 Terminals 121 | . 8 . . 2 4 6 10 5 8 4 . 21 . 6 . 8 . 4 . . 35 Fabricators 25 | . . . . . . . . . . . . 7 . 5 . 1 . . . . 12 Repair Stations 9 | . . . . . . . . . 6 1 . 2 . . . . . . . . . Recycling Units 4 | . . . . . . . . . . . . 3 . . . 1 . . . . . Scanalyzers 12 | . . . . . 2 . . . . . . 8 . . . . . . . . 2 Garrison Access 19 | . . . . . 1 . 1 . 2 2 . 3 . 3 . 1 . . . . 6 Terminal Hacks 74 | . . . 2 . . 2 . 1 . 1 . 7 . 2 . 2 1 12 31 . 13 Record 26 | . . . 1 . . . . . . . . . . . . . 1 11 11 . 2 Part Schematic 18 | . . . . . . . . . . . . 1 . . . . . . 12 . 5 Robot Schematic 5 | . . . . . . . . . . . . . . . . . . . 5 . . Prototype ID Bank 3 | . . . . . . . . . . . . . . . . . . . 3 . . Open Door 3 | . . . . . . 1 . 1 . . . . . . . . . 1 . . . Branch Access Points 2 | . . . . . . . . . . . . 1 . 1 . . . . . . . Emergency Access Points 1 | . . . . . . 1 . . . . . . . . . . . . . . . Terminal Index 3 | . . . . . . . . . . . . 1 . 1 . 1 . . . . . Alert Level 1 | . . . . . . . . . . . . . . . . . . . . . 1 Unreport Threat 4 | . . . . . . . . . . . . . . . . . . . . . 4 Locate Traps 4 | . . . . . . . . . . 1 . 1 . . . 1 . . . . 1 Recall Investigation 1 | . . . . . . . . . . . . 1 . . . . . . . . . Recall Extermination 1 | . . . . . . . . . . . . 1 . . . . . . . . . Hauler Manifests 1 | . . . . . . . . . . . . 1 . . . . . . . . . Derelict Proto ID Bank 1 | . . . 1 . . . . . . . . . . . . . . . . . . Fabricator Hacks 20 | . . . . . . . . . . . . 4 . 5 . 1 . . . . 10 Network Status 4 | . . . . . . . . . . . . 1 . 1 . 1 . . . . 1 Load Schematic 10 | . . . . . . . . . . . . 3 . 2 . . . . . . 5 Build 6 | . . . . . . . . . . . . . . 2 . . . . . . 4 Repair Station Hacks 5 | . . . . . . . . . 5 . . . . . . . . . . . . Scan Component 3 | . . . . . . . . . 3 . . . . . . . . . . . . Repair 2 | . . . . . . . . . 2 . . . . . . . . . . . . Recycling Unit Hacks . | . . . . . . . . . . . . . . . . . . . . . . Scanalyzer 7 | . . . . . 1 . . . . . . 5 . . . . . . . . 1 Insert Component 5 | . . . . . 1 . . . . . . 3 . . . . . . . . 1 Analyze 2 | . . . . . . . . . . . . 2 . . . . . . . . . Garrison Access Hacks 8 | . . . . . 1 . 1 . 1 . . . . 1 . 1 . . . . 3 Unlock Access 2 | . . . . . 1 . 1 . . . . . . . . . . . . . . Seal Access 6 | . . . . . . . . . 1 . . . . 1 . 1 . . . . 3 Unauthorized Hacks 27 | . 2 . . . 2 . 5 . 2 . . 8 . 2 . 2 . . . . 4 Terminals 18 | . 2 . . . 2 . 5 . 2 . . 2 . 2 . 1 . . . . 2 Assimilate 2 | . . . . . . . . . . . . 1 . 1 . . . . . . . Botnet 8 | . . . . . 1 . . . 2 . . 1 . 1 . 1 . . . . 2 Skim 8 | . 2 . . . 1 . 5 . . . . . . . . . . . . . . Fabricators 5 | . . . . . . . . . . . . 3 . . . . . . . . 2 Recompile 5 | . . . . . . . . . . . . 3 . . . . . . . . 2 Repair Stations . | . . . . . . . . . . . . . . . . . . . . . . Recycling Units 4 | . . . . . . . . . . . . 3 . . . 1 . . . . . Reject 1 | . . . . . . . . . . . . 1 . . . . . . . . . Recyclers 1 | . . . . . . . . . . . . 1 . . . . . . . . . Mask 1 | . . . . . . . . . . . . 1 . . . . . . . . . Tunnel 1 | . . . . . . . . . . . . . . . . 1 . . . . . Scanalyzers . | . . . . . . . . . . . . . . . . . . . . . . Garrison Access . | . . . . . . . . . . . . . . . . . . . . . . Data Cores Recovered . | . . . . . . . . . . . . . . . . . . . . . . Used . | . . . . . . . . . . . . . . . . . . . . . . Hacking Detections 59 | . 5 . . 1 3 3 3 4 5 4 . 11 . 4 . 5 . 1 . . 10 Full Trace Events 2 | . . . . . . . . 1 . . . 1 . . . . . . . . . Feedback Events . | . . . . . . . . . . . . . . . . . . . . . . Feedback Blocked . | . . . . . . . . . . . . . . . . . . . . . . Robot Schematics Acquired 5 | . . . . . . . . . . . . . . . . . . . 5 . . Robots Built . | . . . . . . . . . . . . . . . . . . . . . . Authchips . | . . . . . . . . . . . . . . . . . . . . . . Time . | . . . . . . . . . . . . . . . . . . . . . . Total Robot Build Rating . | . . . . . . . . . . . . . . . . . . . . . . Part Schematics Acquired 20 | . . . . . . . . . . . . 3 . . . . . . 12 . 5 Parts Built 6 | . . . . . . . . . . . . . . 2 . . . . . . 4 Authchips 5 | . . . . . . . . . . . . . . 2 . . . . . . 3 Time 387 | . . . . . . . . . . . . . . 94 . . . . . . 293 Total Part Build Rating 35 | . . . . . . . . . . . . . . 10 . . . . . . 25 Parts Repaired 2 | . . . . . . . . . 2 . . . . . . . . . . . . Time 110 | . . . . . . . . . 110 . . . . . . . . . . . . Parts Recycled . | . . . . . . . . . . . . . . . . . . . . . . Recycled Matter . | . . . . . . . . . . . . . . . . . . . . . . Retrieved Matter . | . . . . . . . . . . . . . . . . . . . . . . Retrieved Components . | . . . . . . . . . . . . . . . . . . . . . . Parts Scanalyzed 3 | . . . . . . . . . . . . 3 . . . . . . . . . Part Schematics Acquired 2 | . . . . . . . . . . . . 2 . . . . . . . . . Parts Damaged . | . . . . . . . . . . . . . . . . . . . . . . Bothacking | -11 -10 -10 -10 -9 -8 -8 -8 -8 -8 -7 -7 -7 -7 -6 -6 -6 -6 -6 -6 -5 -5 ------------ Run | Yrd Mat Min Exi Min Mat Gar Mat Gar Mat Fac Was Fac Low Fac Was Fac Low Low Dat Pro Fac Used RIF Installer . | . . . . . . . . . . . . . . . . . . . . . . Robots Hacked 1 | . . . . . . . . . . 1 . . . . . . . . . . . Non-combat 1 | . . . . . . . . . . 1 . . . . . . . . . . . Combat . | . . . . . . . . . . . . . . . . . . . . . . Robot Hacks Applied 1 | . . . . . . . . . . 1 . . . . . . . . . . . find_chute 1 | . . . . . . . . . . 1 . . . . . . . . . . . Relay Couplers Released 12 | . . . . . . 8 . 4 . . . . . . . . . . . . . Machine Destruction 12 | . . . . . . 8 . 4 . . . . . . . . . . . . . Fabnet Peak Effective % . | . . . . . . . . . . . . . . . . . . . . . . Robots Rewired 9 | . . . . . . 3 . 6 . . . . . . . . . . . . . Allies Hacked . | . . . . . . . . . . . . . . . . . . . . . . Hacks Repelled . | . . . . . . . . . . . . . . . . . . . . . . Allies | -11 -10 -10 -10 -9 -8 -8 -8 -8 -8 -7 -7 -7 -7 -6 -6 -6 -6 -6 -6 -5 -5 -------- Run | Yrd Mat Min Exi Min Mat Gar Mat Gar Mat Fac Was Fac Low Fac Was Fac Low Low Dat Pro Fac Total Allies 19 | . . . . . . 5 . 8 . . . . 1 . . 2 . 3 . . . Largest Group 6 | . . . . . . 5 5 6 2 . . . 1 . . 2 . 3 . . . Highest-Rated Group 141 | . . . . . . 97 97 126 40 . . . 141 . . 62 . 93 . . . Highest-Rated Ally 141 | . . . . . . 31 31 31 20 . . . 141 . . 31 . 31 . . . Warlord Squad Rendezvous 2 | . . . . . . . . . . . . . . . . . . . . . 2 Chimera 1 | . . . . . . . . . . . . . . . . . . . . . 1 Ghost 1 | . . . . . . . . . . . . . . . . . . . . . 1 Total Orders . | . . . . . . . . . . . . . . . . . . . . . . Ally Attacks 213 | . . . . . . 2 43 81 19 . . . 14 . . 37 . 17 . . . Total Damage 3838 | . . . . . . 170 459 1407 264 . . . 647 . . 615 . 276 . . . Kills 38 | . . . . . . 1 5 16 2 . . . 6 . . 4 . 4 . . . Allies Corrupted . | . . . . . . . . . . . . . . . . . . . . . . Allies Melted 2 | . . . . . . . . . . . . . . . . . . 2 . . . Intel | -11 -10 -10 -10 -9 -8 -8 -8 -8 -8 -7 -7 -7 -7 -6 -6 -6 -6 -6 -6 -5 -5 ------- Run | Yrd Mat Min Exi Min Mat Gar Mat Gar Mat Fac Was Fac Low Fac Was Fac Low Low Dat Pro Fac Robot Analysis Total . | . . . . . . . . . . . . . . . . . . . . . . Derelict Logs Recovered 10 | . . 1 . 1 . . . . . . . . . . . . 2 3 . 3 . Drone Launches . | . . . . . . . . . . . . . . . . . . . . . . Drone Recoveries . | . . . . . . . . . . . . . . . . . . . . . . Exploration | -11 -10 -10 -10 -9 -8 -8 -8 -8 -8 -7 -7 -7 -7 -6 -6 -6 -6 -6 -6 -5 -5 ------------- Run | Yrd Mat Min Exi Min Mat Gar Mat Gar Mat Fac Was Fac Low Fac Was Fac Low Low Dat Pro Fac Turns Passed 28563 | 221 1542 2027 658 1844 3003 1407 1203 2076 2270 1700 835 1452 269 484 260 1970 637 1148 164 818 2575 Spaces Moved 16635 | 95 671 565 206 513 977 905 453 706 755 807 452 2165 695 971 298 928 379 650 101 405 2938 Core 19 | 4 . . . . . . . . . . 3 . . . . . . . . 10 2 Treads 7724 | 72 671 565 206 513 855 2 393 706 755 66 167 302 . . 79 928 379 650 101 314 . Legs 252 | . . . . . . . . . . . . . . . . . . . . 81 171 Wheels 2127 | 19 . . . . 122 903 60 . . 741 282 . . . . . . . . . . Hover 520 | . . . . . . . . . . . . . . . . . . . . . 520 Flight 5993 | . . . . . . . . . . . . 1863 695 971 219 . . . . . 2245 Fastest Speed 21 | 50 160 320 320 320 116 116 155 245 241 130 145 26 26 21 23 160 160 160 160 50 39 Average Speed 136 | 142 162 320 320 320 239 139 234 245 244 150 162 45 26 25 61 160 160 160 160 153 57 Slowest Speed 1900 | 160 320 320 320 320 320 240 245 246 245 241 1900 320 91 82 160 240 160 160 160 190 250 Overloaded Moves 11 | . . . . . . . . . . . . . . 11 . . . . . . . Propulsion Burnouts . | . . . . . . . . . . . . . . . . . . . . . . Robots Hopped 29 | . . . . . . . . . . . . 20 . 3 . . . . . . 6 Cave-ins Triggered . | . . . . . . . . . . . . . . . . . . . . . . Exploration Rate (%) 64 | 8 89 98 60 93 65 94 60 77 64 32 96 47 58 25 98 28 57 79 72 57 68 Regions Visited 21 Branch Regions 8 Pre-discovered Areas 8 | . . . 1 1 . . . . . . . . 1 . . 1 2 1 1 . . Known Exits Taken 5 | . . . . . 1 . 1 . 1 . . 1 . . . 1 . . . . . Unknown Exits Taken 10 | 1 1 1 1 1 . . . . . . . . 1 . . . 1 1 1 1 . Scrap Searched 10 | . . 1 . 1 . . . . . . . . 1 . . . 1 2 . 4 . Spaces Dug 342 | . 15 1 . 17 11 1 2 19 56 11 . 13 19 13 . 14 4 3 . 1 142 Terrain Destroyed 1069 | . 24 26 . 20 41 1 26 29 322 68 . 13 95 13 . 90 11 17 . 62 211 Melee 75 | . . . . . . 1 . . . 5 . 13 2 13 . . . . . . 41 Projectile 246 | . 24 3 . 8 13 . 10 12 53 13 . . . . . 34 11 17 . 46 2 AOE 747 | . . 23 . 12 28 . 16 17 269 50 . . 93 . . 55 . . . 16 168 Terrain Rammed . | . . . . . . . . . . . . . . . . . . . . . . Walls Destroyed . | . . . . . . . . . . . . . . . . . . . . . . Machines Disabled . | . . . . . . . . . . . . . . . . . . . . . . Actions | -11 -10 -10 -10 -9 -8 -8 -8 -8 -8 -7 -7 -7 -7 -6 -6 -6 -6 -6 -6 -5 -5 --------- Run | Yrd Mat Min Exi Min Mat Gar Mat Gar Mat Fac Was Fac Low Fac Was Fac Low Low Dat Pro Fac Total 20712 | 142 897 740 208 662 1412 1036 535 988 1067 1089 533 2488 758 1159 380 1235 398 718 104 519 3644 Wait 1837 | . 79 131 . 112 183 18 15 138 148 61 1 147 36 119 27 136 5 35 . 31 415 Move 16560 | 94 670 564 205 512 976 902 452 705 754 807 451 2128 694 965 297 927 378 649 100 404 2926 Hop 25 | . . . . . . . . . . . . 16 . 3 . . . . . . 6 Pick Up 213 | 11 16 9 1 1 28 16 5 6 9 20 12 23 1 5 5 12 1 2 . 5 25 Fast Attach 186 | 6 1 1 . . 17 2 9 2 10 9 9 25 . 5 2 20 1 1 2 6 58 Attach 77 | 1 . . . . 4 3 . 1 7 8 2 7 3 6 11 2 2 . . 2 18 Detach 76 | . . . . . 2 . . . 7 5 3 17 2 4 16 2 1 1 . . 16 Swap 210 | 3 14 10 . 11 27 6 6 10 25 33 14 7 8 7 2 5 . . . 9 13 Drop 328 | 4 11 3 2 2 49 20 15 11 23 19 26 35 1 12 12 21 2 2 2 4 52 Fire 823 | 23 98 18 . 21 121 2 30 39 81 117 15 31 9 . 8 99 8 28 . 57 18 Melee 195 | . . . . . . 12 . . . 6 . 48 4 33 . . . . . . 92 Ram 3 | . . . . . . . . . . 3 . . . . . . . . . . . Kick . | . . . . . . . . . . . . . . . . . . . . . . Crush 39 | . 8 4 . 3 3 . 3 . 3 . . 4 . . . 11 . . . . . Escape Stasis 14 | . . . . . . . . 9 . . . . . . . . . . . . 5 Rewire 123 | . . . . . . 55 . 67 . 1 . . . . . . . . . . . Trap 3 | . . . . . 2 . . . . . . . . . . . . . . 1 . Miscellaneous . | . . . . . . . . . . . . . . . . . . . . . . Route ------- -11/Scrapyard -10/Materials (discovered 3 exits: [*Mat x2] / [*Min]) -10/Mines (discovered 3 exits: [*Mat x2] / *Exi) -10/Exiles (discovered 2 exits: *Min x2) -9/Mines (discovered 2 exits: *Mat x2) -8/Materials (discovered 3 exits: *Fac x2 / Gar) -8/Garrison (discovered 3 exits: *Mat x3) -8/Materials (discovered 2 exits: *Fac / Gar) -8/Garrison (discovered 3 exits: *Mat x3) -8/Materials -7/Factory -7/Waste -7/Factory (discovered 3 exits: *Fac / *Low x2) -7/Lower Caves (discovered 2 exits: [*Low] / *Fac) -6/Factory (discovered 5 exits: *Fac / *Low x2 / Ext x2) -6/Waste -6/Factory (discovered 2 exits: *Low / *Ext) -6/Lower Caves -6/Lower Caves -6/Data Miner -5/Proximity Caves -5/Factory (discovered 5 exits: *Fac x3 / *Upp x2) History --------- Turn | Location | Event 15 | -11/Scrapyard | Discovered new exit (range 15) 222 | -11/Scrapyard | Entered Materials 290 | -10/Materials | Discovered new exit (range 16) 305 | -10/Materials | Build established: Mutant 381 | -10/Materials | Discovered new exit (range 16) 1418 | -10/Materials | Discovered new exit (range 16) 1764 | -10/Materials | Entered Mines 1771 | -10/Mines | Received a Rocket Launcher from a helpful Derelict 1852 | -10/Mines | Learned location of 1 exit from Materials 2124 | -10/Mines | Found a hidden stash of uninstalled traps 2231 | -10/Mines | Deemed a non-threat by the Exiles lab entrance 2231 | -10/Mines | Discovered new exit (range 5) 2356 | -10/Mines | Discovered new exit (range 11) 2446 | -10/Mines | A weapon hastily lodged in a ceiling crevice suddenly fell to the ground 2516 | -10/Mines | Found a damaged Exp. Sensor Array with a note attached 2523 | -10/Mines | Found Prototype Device 3003 | -10/Mines | Discovered new exit (range 11) 3791 | -10/Mines | Entered Exiles 3843 | -10/Exiles | Discovered new exit (range 15) 3878 | -10/Exiles | Met 8R-AWN 3926 | -10/Exiles | Met EX-HEX 4012 | -10/Exiles | Met EX-BIN 4047 | -10/Exiles | Aligned with FarCom system 4051 | -10/Exiles | Given EX-Vault access code 4124 | -10/Exiles | Opened EX-Vault 4144 | -10/Exiles | Found Firepult 4213 | -10/Exiles | Warned to stay clear of 0b10 Research branches 4255 | -10/Exiles | Exiles lab attacked by MAIN.C 4318 | -10/Exiles | Learned location of Zion (-7) 4424 | -10/Exiles | Discovered new exit (range 10) 4449 | -10/Exiles | Left Exiles lab with Firepult 4449 | -10/Exiles | Entered Mines 4600 | -9/Mines | Discovered new exit (range 8) 4870 | -9/Mines | Assembled infested the area 4875 | -9/Mines | Assisted by a Guerilla fighting off Assembled 5164 | -9/Mines | Core integrity fell below 50% 5217 | -9/Mines | Learned location of Storage (-9) 5780 | -9/Mines | Discovered new exit (range 6) 6293 | -9/Mines | Entered Materials 6293 | -8/Materials | Evolved 4 slots: Propulsion x2, Utility x2 6294 | -8/Materials | Identified exit to Factory 6565 | -8/Materials | Build established: Scavenger-Mutant 7421 | -8/Materials | Destroyed 8 combat bots 8176 | -8/Materials | Identified exit to Garrison 8344 | -8/Materials | Identified Exp. Sensor Array 8988 | -8/Materials | Discovered exit to Factory (range 10) 9296 | -8/Materials | Entered Garrison 9296 | -8/Garrison | Discovered recently destroyed garrison 9311 | -8/Garrison | Rescued a captive Derelict 9312 | -8/Garrison | Rescued a captive Derelict 9335 | -8/Garrison | Garrison Relay disabled 9574 | -8/Garrison | Garrison Relay disabled 9621 | -8/Garrison | Discovered new exit (range 12) 9760 | -8/Garrison | Discovered new exit (range 9) 10224 | -8/Garrison | Discovered new exit (range 10) 10373 | -8/Garrison | Attempted to access garrison exit controls, blocked by remote lockdown 10524 | -8/Garrison | Attempted to access garrison exit controls, blocked by remote lockdown 10703 | -8/Garrison | Entered Materials 10703 | -8/Materials | Accompanied by 5 allies 10841 | -8/Materials | Lost 3 allies 11087 | -8/Materials | Build established: Mutant 11107 | -8/Materials | Discovered exit to Factory (range 3) 11221 | -8/Materials | Met 7R-MNS 11579 | -8/Materials | Identified exit to Garrison 11813 | -8/Materials | Core integrity fell below 50% 11821 | -8/Materials | Garrison activated, responded to threat 11906 | -8/Materials | Entered Garrison 12036 | -8/Garrison | Triggered checkpoint 12326 | -8/Garrison | Triggered checkpoint 12383 | -8/Garrison | Rescued a captive Derelict 12385 | -8/Garrison | Rescued a captive Derelict 12709 | -8/Garrison | Build established: Scavenger-Mutant 12830 | -8/Garrison | Discovered new exit (range 10) 13072 | -8/Garrison | Triggered checkpoint 13114 | -8/Garrison | Triggered checkpoint 13178 | -8/Garrison | Discovered new exit (range 12) 13296 | -8/Garrison | Triggered checkpoint 13506 | -8/Garrison | Triggered checkpoint 13644 | -8/Garrison | Discovered new exit (range 15) 13982 | -8/Garrison | Entered Materials 13982 | -8/Materials | Accompanied by 2 allies 14719 | -8/Materials | Build established: Mutant 15125 | -8/Materials | Repaired Rocket Launcher 15218 | -8/Materials | Repaired Broken Arm. Medium Treads 15422 | -8/Materials | Core integrity fell below 20% 15582 | -8/Materials | First assault squad dispatched 16231 | -8/Materials | Discovered exit to Factory (range 7) 16252 | -8/Materials | Entered Factory 16252 | -7/Factory | Evolved 2 slots: Utility x2 16563 | -7/Factory | Assembled infested ambush trap array 16622 | -7/Factory | Destroyed 8 combat bots 16672 | -7/Factory | Lost 5 parts (1p1n2u1w) 17123 | -7/Factory | Garrison activated, responded to threat 17502 | -7/Factory | Discovered new exit (range 7) 17852 | -7/Factory | First assault squad dispatched 17952 | -7/Factory | Sucked down chute 17952 | -7/Factory | Entered Waste 17952 | -7/Waste | The area was eerily silent 18266 | -7/Waste | Build established: Scavenger-Mutant 18375 | -7/Waste | Discovered new exit (range 16) 18482 | -7/Waste | Found Damper Plating 18787 | -7/Waste | Entered Factory 18895 | -7/Factory | Discovered new exit (range 10) 19143 | -7/Factory | Discovered new exit (range 9) 19522 | -7/Factory | Core integrity fell below 50% 19589 | -7/Factory | Identified exit to Lower Caves 19709 | -7/Factory | Build established: Hacker-Sprinter 19759 | -7/Factory | Garrison activated, responded to threat 20239 | -7/Factory | Entered Lower Caves 20245 | -7/Lower Caves | Met a Warlord Commander 20246 | -7/Lower Caves | Learned location of Warlord (-5) 20247 | -7/Lower Caves | Warlord Commander delivered Encrypted Comm Array 20249 | -7/Lower Caves | Found Encrypted Comm Array 20396 | -7/Lower Caves | Discovered new exit (range 7) 20424 | -7/Lower Caves | Encountered a Warlord checkpoint 20453 | -7/Lower Caves | 1C-UTU showed up to help 20456 | -7/Lower Caves | 1C-UTU revealed a hidden path 20508 | -7/Lower Caves | Entered Factory 20508 | -6/Factory | Evolved 2 slots: Utility x2 20640 | -6/Factory | Fabricated Imp. Hacking Suite (x1) 20688 | -6/Factory | Fabricated Imp. Hacking Suite (x1) 20741 | -6/Factory | Discovered new exit (range 5) 20764 | -6/Factory | Discovered new exit (range 13) 20779 | -6/Factory | Identified exit to Lower Caves 20779 | -6/Factory | Identified exit to Extension 20992 | -6/Factory | Sucked down chute 20992 | -6/Factory | Entered Waste 20995 | -6/Waste | Spotted C-40 Crusher 21004 | -6/Waste | Destroyed C-40 Crusher 21007 | -6/Waste | EMP discharged 21012 | -6/Waste | Spotted C-40 Crusher 21012 | -6/Waste | Spotted C-40 Crusher 21017 | -6/Waste | Destroyed C-40 Crusher 21027 | -6/Waste | Spotted C-40 Crusher 21035 | -6/Waste | Destroyed C-40 Crusher 21043 | -6/Waste | Spotted C-40 Crusher 21058 | -6/Waste | Spotted C-40 Crusher 21067 | -6/Waste | Discovered new exit (range 16) 21077 | -6/Waste | Destroyed C-40 Crusher 21081 | -6/Waste | Destroyed C-40 Crusher 21098 | -6/Waste | Destroyed C-40 Crusher 21107 | -6/Waste | EMP discharged 21107 | -6/Waste | System corruption reached 10% 21120 | -6/Waste | Found Damper Plating 21193 | -6/Waste | Found Damper Plating 21207 | -6/Waste | EMP discharged 21252 | -6/Waste | Entered Factory 21284 | -6/Factory | Allied Derelicts emerged from ambush trap array 21477 | -6/Factory | Build established: Scavenger-Mutant 21876 | -6/Factory | Discovered exit to Lower Caves (range 3) 22007 | -6/Factory | Discovered exit to Extension (range 13) 23045 | -6/Factory | Destroyed 7 combat bots 23222 | -6/Factory | Entered Lower Caves 23503 | -6/Lower Caves | Encountered a Warlord checkpoint 23665 | -6/Lower Caves | Discovered new exit (range 8) 23700 | -6/Lower Caves | Learned location of Extension (-6) 23859 | -6/Lower Caves | Entered another Lower Caves area 24015 | -6/Lower Caves | A Commander dispatched an escort 24016 | -6/Lower Caves | Learned location of 1 exit from Factory 24016 | -6/Lower Caves | Learned 8 Research zone layouts 24016 | -6/Lower Caves | Learned Research stockpile data 24083 | -6/Lower Caves | Destroyed Z1-M1W(g) 24164 | -6/Lower Caves | Murdered 4 allies 24177 | -6/Lower Caves | Encountered a Warlord checkpoint 24270 | -6/Lower Caves | Learned Factory stockpile data 24493 | -6/Lower Caves | Lost 3 allies 24591 | -6/Lower Caves | Discovered new exit (range 6) 24896 | -6/Lower Caves | Learned 6 Upper Caves zone layouts 24896 | -6/Lower Caves | Learned Armory emergency access door positions 24896 | -6/Lower Caves | Learned Research security intel 25007 | -6/Lower Caves | Entered Data Miner 25008 | -6/Data Miner | Discovered new exit (range 6) 25039 | -6/Data Miner | Met Data Miner 25092 | -6/Data Miner | Learned location of Section 7 (-2) 25092 | -6/Data Miner | Acquired the access code to Warlord's prototype stash 25111 | -6/Data Miner | Received God Mode back door access code from Data Miner 25171 | -6/Data Miner | Entered Proximity Caves 25197 | -5/Proximity Caves | System corruption reached 30% 25255 | -5/Proximity Caves | Learned Factory emergency access door positions 25273 | -5/Proximity Caves | Learned 8 Factory zone layouts 25393 | -5/Proximity Caves | Spotter reported a threat 25456 | -5/Proximity Caves | Encountered a Derelict sapper outpost 25675 | -5/Proximity Caves | Destroyed 10 combat bots 25690 | -5/Proximity Caves | Encountered an infested base 25738 | -5/Proximity Caves | Destroyed 9 combat bots 25866 | -5/Proximity Caves | Released all parts (6) 25885 | -5/Proximity Caves | Lost 5 parts (1p1n3u) 25929 | -5/Proximity Caves | Learned Factory security intel 25945 | -5/Proximity Caves | Discovered new exit (range 5) 25989 | -5/Proximity Caves | Entered Factory 25989 | -5/Factory | Evolved 2 slots: Utility x2 25990 | -5/Factory | Identified exit to Factory 25991 | -5/Factory | Identified exit to Upper Caves 26150 | -5/Factory | Build established: Mutant 26462 | -5/Factory | Build established: Infiltrator-Mutant 26632 | -5/Factory | Joined by Warlord Chimera squad 26638 | -5/Factory | P-70 Sage assimilated allied PK-3G1(M) 27037 | -5/Factory | Fabricated Impulse Thruster Array (x1) 27037 | -5/Factory | Discovered exit to Upper Caves (range 20) 27138 | -5/Factory | Fabricated Imp. Hacking Suite (x1) 27207 | -5/Factory | Joined by Warlord Ghost squad 27440 | -5/Factory | System corruption reached 10% 27462 | -5/Factory | Discovered exit to Factory (range 13) 27720 | -5/Factory | Fabricated Adv. Hacking Suite? 27805 | -5/Factory | Fabricated Adv. Hacking Suite (x1) 27826 | -5/Factory | Build established: Hacker-Mutant 27924 | -5/Factory | Discovered exit to Factory (range 13) 28015 | -5/Factory | Found Prototype Launcher 28017 | -5/Factory | Identified Scatter Rocket Array 28288 | -5/Factory | Build established: Hacker-Gladiator 28470 | -5/Factory | Spotted B-75 Beast 28554 | -5/Factory | Cargo convoy interrupted 28558 | -5/Factory | Core integrity fell below 50% 28563 | -5/Factory | Core integrity fell below 20% 28564 | -5/Factory | Destroyed by X-67 Chaingunner with Minigun Last Messages --------------- 28557_ System corrupted: Matter fused (-5). 28557_ Dropped Scatter Rocket Array. 28557_ Dropped Hvy. Phase Cannon. 28558_ Slug penetrates X-67 Chaingunner. 28558_ Acquired Scatter Rocket Array. 28558_ K-01 Serf collects debris. 28558_ Impulse Thruster Array destroyed. 28558_ Structural Scanner destroyed. 28559_ Imp. Hacking Suite destroyed. 28560_ Penetrated by Slug. 28560_ Slug penetrates X-67 Chaingunner. 28560_ Penetrated by Slug. 28560_ Acquired 13 matter. 28561_ Acquired Cesium-ion Thruster. 28562_ K-01 Serf collects debris. 28562_ Nuclear Pulse Array destroyed. 28562_ Cesium-ion Thruster destroyed. 28563_ Penetrated by Slug. 28563_ Power Sword destroyed. 28563_ Penetrated by Slug. Map ----- +----------------------------------------------------+ | ???????????????????????????#######???#####???????? | | ???????????????????????????#######???#####???????? | | ???????????????????????????## ??? ! #???????? | | ???????????????????????????## ? ######### | | ???????????????????????????## ? # | | ???????????????????????????## ? ]# | | ???????????????????????????## ? # | | ???????????????????????????## *! ? # | | ###########????????????????## *! " "" # | | ########################???## !! " "" # | | ###############???## " T" # | | # """ ##???## " "" # | | # "T" ##??????? ! " "" ###+##### | | # """" ####### # ##? | | # """" #############+###### "" ##? | | # """" # T ##? | | # """" # ### ### | | # """" # ### ### | | # """" # #### #### | | # """" + w #### #### | | # A # % #### | | # i # #### | | #########" #xh i ############# | | ####+##;###;;###;=h hx #################### | | #### ### !*%xxh T##????????######### | | + ### |!k @ ##????????######### | | ######## */ ###????????## ! | | ######## ]= ###????????## | | ##????## ##?????????## ! | | ##????## ##?????????## | | ##????## ##?????????## """ "" | | ######## ###########?????????## """ "" | | ############## ###########????????????""" "" | | ##????????????????????? | | ##?????????????????????###### | | ! ##?????????????????????###### | | ! ##??????????????????????????? | | ! ##??????????????????????????? | | ##??????????????????????????? | | ##??????????????????????????? | | ####################??????????????????????????? | | ? ####################??????????????????????????? | | ?????????????????????????????????????????????????? | | ?????????????????????????????????????????????????? | | ?????????????????????????????????????????????????? | | ?????????????????????????????????????????????????? | | ?????????????????????????????????????????????????? | | ?????????????????????????????????????????????????? | | ?????????????????????????????????????????????????? | | ?????????????????????????????????????????????????? | +----------------------------------------------------+ Best States ------------- Heat Dissipation 151 Coolant Potential 80 Energy Generation 21 Energy Capacity 325 Matter Stores 300 Matter Capacity 300 Sight Range 16 Terrain Scan Range 20 Terrain Scan Density 85 ECM Strength 1 Jamming Range 12 Cloak Strength 2 Additional Mass Support 12 Base Temperature (-) 150 EM Shielding 3 Corruption Block 6 Armor Coverage 3200 Resistance: KI 30 Resistance: TH 25 Resistance: EM 90 Weapon Cycling 15 Phase Shifting 5 Evasion (%) 70 Targeting Accuracy 5 Melee Accuracy 14 Core Analysis 6 Armor Integrity Analysis 30 Recoil Reduction 4 Salvage Targeting 2 Offensive Hacking 54 Defensive Hacking 14 Authchip Count 3 Item Schematics ----------------- Hvy. Treads | -7/Factory | Scanalyzed Hvy. Armor Plating | -7/Factory | Scanalyzed Imp. Hacking Suite | -7/Factory | Hacked Combat Drone Bay | -6/Data Miner | Free Lgt. Regenerative Plating | -6/Data Miner | Free Enh. Armored Leg | -6/Data Miner | Free Prc. Matter Filter | -6/Data Miner | Free Tiamat Missile Launcher | -6/Data Miner | Free Adv. Medium Treads | -6/Data Miner | Free Adv. Power Amplifier | -6/Data Miner | Free HERF Cannon | -6/Data Miner | Free KE Penetrator | -6/Data Miner | Free Graphene Brace | -6/Data Miner | Free Adv. Recalibrator | -6/Data Miner | Free Adv. Force Field | -6/Data Miner | Free Adv. Hacking Suite | -5/Factory | Hacked Adv. Reaction Control System | -5/Factory | Hacked Adv. System Shield | -5/Factory | Hacked Cld. Cesium-ion Thruster | -5/Factory | Hacked Imp. Transmission Jammer | -5/Factory | Hacked Robot Schematics ------------------ E-15 Imp | -6/Data Miner | Free R-10 Processor | -6/Data Miner | Free B-60 Warrior | -6/Data Miner | Free H-77 Assassin | -6/Data Miner | Free G-67 Veteran | -6/Data Miner | Free Fabricated ------------ Imp. Hacking Suite | x1 | -6/Factory | Authchip Imp. Hacking Suite | x1 | -6/Factory | Authchip Impulse Thruster Array | x1 | -5/Factory | Preloaded Imp. Hacking Suite | x1 | -5/Factory | Authchip Adv. Hacking Suite | x1 | -5/Factory | Authchip Adv. Hacking Suite | x1 | -5/Factory | Authchip Alien Tech Used ----------------- None Achievements -------------- Deadly Force Challenges ------------ None Game ------ Seed SystemGunDisintegrator Manual? 0 Play Time 04:54:45 Cumulative 184.4 hours Start 2024.10.15 @ 23:23:55 End 2024.10.20 @ 15:39:33 Sessions 9 Manual Loads 0 Difficulty Rogue Special Mode None Game No. 102 Rogue 89 Adventurer 13 Explorer 0 Win Type - Total 4 Types 4/0/0/0/0/0/0/0/0 Lore% 52 Gallery% 70 Achievement% 59 Wizard Run 0 Options --------- Layout 2 ASCII 0 Keyboard 1 Movement Numpad Keybinds 0 Fullscreen 2 Font 16/Swanston Map View 55x47 Zoom Use 0% Tactical HUD 1 Map Filters NONE Filters NONE Steam 0 RUN: c0623eab-8f96-4390-9a0c-aa090176b143